Cogmind - Beta 15 @@@ ROGUE MODE // 2025.09.03 @ 12:23:56 Player: celerysam Result: Destroyed by VH-FDS(R) with Subdweller Machine Gun Performance ------------- Evolutions (0) 0 Regions Visited (2) 400 Robots Destroyed (16) 80 Value Destroyed (371) 371 Prototype IDs (0) 0 Alien Tech Used (0) 0 Bonus (0) 0 TOTAL SCORE: 851 Bonus ------- None Cogmind --------- Core Integrity 0/250 Matter 290/300 Energy 85/100 System Corruption 1% Temperature Cool (0) Movement Rolling (140) Ox4 Location -10/Subcaves Parts ------- > --- POWER (1) -------- (None) > --- PROPULSION (2) --- Wheel Wheel > --- UTILITY (2) ------ Huge Storage Unit Targeting Computer > --- WEAPON (2) ------- Subdweller Beam Cannon > --- INVENTORY (25) --- Subdweller Power Source Heat Sink Small Storage Unit Large Storage Unit Structural Scanner Targeting Computer ECM Suite EM Pulse Gun Medium Laser Subdweller Machine Gun Hammer Peak State ------------ > --- POWER ------------ Ion Engine > --- PROPULSION ------- Wheel Compact Wheel > --- UTILITY ---------- Large Storage Unit Targeting Computer > --- WEAPON ----------- Medium Laser Light Assault Rifle > --- INVENTORY -------- Ion Engine Wheel Heat Sink Small Storage Unit Structural Scanner Targeting Computer ECM Suite EM Pulse Gun Beam Cannon Hammer [Rating: 8] Favorites ----------- Power Ion Engine Engine Ion Engine Propulsion Wheel Leg Aluminum Leg Wheel Wheel Utility Targeting Computer Device Heat Sink Storage Huge Storage Unit Processor Targeting Computer Weapon Light Assault Rifle Energy Gun Medium Laser Energy Cannon Beam Cannon Ballistic Gun Light Assault Rifle Impact Weapon Hammer Build | -11 -10 -10 ------- Run | Yrd Mat Sub Slots Evolved . | . . . Power . | . . . Propulsion . | . . . Utility . | . . . Weapon . | . . . Parts Attached 22 | 6 12 4 Power 4 | 1 2 1 Engine 4 | 1 2 1 Core . | . . . Reactor . | . . . Propulsion 7 | 2 3 2 Treads . | . . . Leg 2 | 2 . . Wheel 5 | . 3 2 Hover . | . . . Flight . | . . . Utility 6 | 1 5 . Device 2 | . 2 . Storage 3 | 1 2 . Processor 1 | . 1 . Hackware . | . . . Protection . | . . . Artifact . | . . . Weapon 5 | 2 2 1 Energy Gun 1 | 1 . . Energy Cannon 2 | . 1 1 Ballistic Gun 1 | 1 . . Ballistic Cannon . | . . . Launcher . | . . . Special Weapon . | . . . Impact Weapon 1 | . 1 . Slashing Weapon . | . . . Piercing Weapon . | . . . Special Melee Weapon . | . . . Unidentified Prototypes . | . . . Parts Lost 9 | . 3 6 Power 3 | . 1 2 Propulsion 4 | . 2 2 Utility . | . . . Weapon 2 | . . 2 Highest Loss Streak 3 | . 2 3 To Critical Strikes . | . . . Average Backups 9 | 4 8 11 Power . | . . 1 Propulsion 1 | 3 2 . Utility 3 | . 3 6 Weapon 2 | 1 2 3 Tool/Special . | . . . Unused Backups 9 | . 5 4 Power 2 | . 1 1 Propulsion 2 | . 2 . Utility 2 | . . 2 Weapon 3 | . 2 1 Tool/Special . | . . . Average Slot Usage (%) 95 | . 94 97 Engine 13 | . 13 13 Leg 9 | . 13 . Wheel 16 | . 12 26 Device 1 | . 1 . Storage 14 | . 14 14 Processor 10 | . 9 14 Energy Gun 8 | . 11 . Energy Cannon 5 | . 1 13 Ballistic Gun 14 | . 14 14 Peak Build Rating 8 | 6 8 8 Average Rating 7 | 4 6 7 On Entrance 4 | . 6 8 Naked Turns . | . . . Heaviest Build 89 | 13 89 89 Greatest Support 26 | 20 26 20 Greatest Overweight (x) 8 | . 8 8 Average Overweight (x) 1 | . . 4 Largest Inventory Capacity 25 | 8 25 25 Average Capacity 16 | 6 13 25 Most Carried 12 | 7 12 12 Average Carried 9 | 5 8 11 Final Capacity 25 | 8 25 25 Final Carried 11 | 6 11 11 Class Distribution -------------------- 100% | Mutant Dominant Class ---------------- Mutant | -10/Materials Mutant | -10/Subcaves Resources | -11 -10 -10 ----------- Run | Yrd Mat Sub Matter Collected 450 | 210 153 87 Remotely . | . . . Salvage Created 487 | . 283 204 Parts 30 | . 20 10 Haulers Intercepted . | . . . Recyclers Shooed . | . . . Parts Field Recycled . | . . . Retrieved Matter . | . . . Parts Self-Destructed . | . . . Prevented . | . . . Kills | -11 -10 -10 ------- Run | Yrd Mat Sub Combat Hostiles Destroyed 15 | . 11 4 Guns 12 | . 10 2 Cannons 3 | . 1 2 Classes Destroyed 4 | . 3 1 Watcher 1 | . 1 . Swarmer 8 | . 8 . Grunt 3 | . 3 . Subdweller 4 | . . 4 Best Kill Streak 3 | . 3 2 Combat Bots Only 3 | . 3 2 Max Kills in Single Turn 1 | . 1 1 Gunslinging . | . . . Exploded . | . . . Melee . | . . . Uniques/NPCs Destroyed . | . . . Combat | -11 -10 -10 -------- Run | Yrd Mat Sub Hostile Shots Fired 115 | . 92 23 Missed 27 | . 22 5 Hits 88 | . 70 18 Projectile 88 | . 70 18 Damage Taken 1082 | . 631 451 Core 261 | . 134 127 Absorbed by Shields . | . . . Core Remaining (%) 100 | 100 . . Volleys Fired 65 | . 49 16 Largest 2 | . 2 2 Hottest 80 | . 80 80 Shots Fired 128 | . 97 31 Gun 103 | . 87 16 Cannon 25 | . 10 15 Launcher . | . . . Special . | . . . Kinetic 65 | . 49 16 Thermal 63 | . 48 15 Explosive . | . . . Electromagnetic . | . . . Robot Hit Streak 6 | . 6 6 Robot Miss Streak 7 | . 7 2 Penetration Max . | . . . Secondary Targets 3 | . 3 . Max Gunslinging Chain 1 | . 1 . Shots Hit Robots 71 | . 48 23 Core Hits 29 | . 19 10 Critical Kills . | . . . Critical Parts Destroyed . | . . . Critical Strikes 4 | . 4 . Burn 4 | . 4 . Melee Attacks 4 | . 4 . Impact 4 | . 4 . Slashing . | . . . Piercing . | . . . Sneak Attacks . | . . . Combat Hostiles . | . . . Follow-up Attacks . | . . . Damage Inflicted 811 | . 526 285 Guns 497 | . 405 92 Cannons 314 | . 121 193 Explosions . | . . . Melee . | . . . Ramming . | . . . Kinetic 275 | . 183 92 Thermal 536 | . 343 193 Explosive . | . . . Electromagnetic . | . . . Impact . | . . . Slashing . | . . . Piercing . | . . . Highest Corruption 1 | . 1 1 Average Corruption 1 | . 1 1 Corruption Purged . | . . . Corruption Blocked . | . . . Effects 10 | . 7 3 Message Errors 4 | . 4 . Matter Fused 2 | . 1 1 Heat Flow Errors 1 | . . 1 Energy Discharges 2 | . 1 1 Data Loss (minor) 1 | . 1 . Overload Shots . | . . . Overflow Damage . | . . . Projectiles . | . . . Explosions . | . . . Melee . | . . . Knockbacks . | . . . Impact . | . . . Kinetic . | . . . Secondary . | . . . Self-Inflicted Damage . | . . . Shots . | . . . Rammed . | . . . Targets Rammed . | . . . Kicked . | . . . Crushed . | . . . Highest Temperature 320 | . 320 263 Average Temperature 81 | . 79 96 Received Heat Transfer 180 | . 72 108 Siege Activations . | . . . Martial Activations . | . . . Shielding Activations . | . . . Robots Disrupted . | . . . Combat Hostiles . | . . . Robots Corrupted . | . . . Combat Hostiles . | . . . Parts Fried . | . . . Impact Corruptions . | . . . Robots Melted . | . . . Combat Hostiles . | . . . Parts Melted 2 | . . 2 Heat Transferred 1628 | . 1221 407 Parts Sabotaged . | . . . Parts Stolen . | . . . Parts Stripped . | . . . Power Chain Reactions . | . . . Alert | -11 -10 -10 ------- Run | Yrd Mat Sub Maximum Alert Level . | . . . Low Security (%) 100 | 100 100 . Level 1 . | . . . Level 2 . | . . . Level 3 . | . . . Level 4 . | . . . Level 5 . | . . . High Security . | . . . Max Security . | . . . Peak Influence 104 | . 104 . Initial . | . . . Average 30 | . 33 . Influence Increases 290 | . 290 . Destroy 0b10 Robot/C 220 | . 220 . Destroy 0b10 Robot/NC 5 | . 5 . Destroy Leader 42 | . 42 . Successful Hack 5 | . 5 . Destroy Structure 3 | . 3 . Lose Combat Pursuer 15 | . 15 . Influence Decreases 290 | . 264 26 Entered New Map 14 | . . 14 Time Decay 256 | . 244 12 Lost Part 20 | . 20 . Squads Dispatched 1 | . 1 . Investigation 1 | . 1 . Extermination . | . . . Reinforcement . | . . . Assault . | . . . Garrison . | . . . Intercept . | . . . Searches Triggered . | . . . Construction Impeded . | . . . Haulers Reinforced . | . . . Active Scanning Responses . | . . . Cargo Convoy Interrupts . | . . . Stealth | -11 -10 -10 --------- Run | Yrd Mat Sub Distress Signals . | . . . Communications Jammed . | . . . Distress Signals . | . . . Times Spotted 24 | . 19 5 Peak Tracking Total 3 | . 3 2 Tactical Retreats 1 | . 1 . Traps | -11 -10 -10 ------- Run | Yrd Mat Sub Traps Triggered 2 | . 2 . Indirectly . | . . . Trap Hack Attempts . | . . . Triggered . | . . . Disarmed . | . . . Reprogrammed . | . . . Reused . | . . . Traps Extracted . | . . . Installed . | . . . Triggered . | . . . Machines | -11 -10 -10 ---------- Run | Yrd Mat Sub Machines Disabled . | . . . Max in Single Turn . | . . . Machines Repaired . | . . . Machines Dismantled . | . . . Machines Sabotaged . | . . . Overloaded Fab Kills . | . . . Hacking | -11 -10 -10 --------- Run | Yrd Mat Sub Machines Accessed 4 | . 4 . Terminals 4 | . 4 . Fabricators . | . . . Repair Stations . | . . . Recycling Units . | . . . Scanalyzers . | . . . Garrison Access . | . . . Total Hacks 6 | . 6 . Successful 2 | . 2 . Failed 4 | . 4 . Catastrophic 1 | . 1 . Database Lockouts . | . . . Manual 6 | . 6 . Terminals 6 | . 6 . Fabricators . | . . . Repair Stations . | . . . Recycling Units . | . . . Scanalyzers . | . . . Garrison Access . | . . . Terminal Hacks . | . . . Fabricator Hacks . | . . . Repair Station Hacks . | . . . Recycling Unit Hacks . | . . . Scanalyzer . | . . . Garrison Access Hacks . | . . . Unauthorized Hacks 2 | . 2 . Terminals 2 | . 2 . Assimilate 1 | . 1 . Botnet 1 | . 1 . Fabricators . | . . . Repair Stations . | . . . Recycling Units . | . . . Scanalyzers . | . . . Garrison Access . | . . . Data Cores Recovered . | . . . Used . | . . . Hacking Detections 2 | . 2 . Full Trace Events . | . . . Feedback Events . | . . . Feedback Blocked . | . . . Robot Schematics Acquired . | . . . Robots Built . | . . . Authchips . | . . . Time . | . . . Total Robot Build Rating . | . . . Part Schematics Acquired . | . . . Parts Built . | . . . Authchips . | . . . Time . | . . . Total Part Build Rating . | . . . Parts Repaired . | . . . Time . | . . . Parts Recycled . | . . . Recycled Matter . | . . . Retrieved Matter . | . . . Retrieved Components . | . . . Parts Scanalyzed . | . . . Part Schematics Acquired . | . . . Parts Damaged . | . . . Bothacking | -11 -10 -10 ------------ Run | Yrd Mat Sub Used RIF Installer . | . . . Robots Hacked . | . . . Non-combat . | . . . Combat . | . . . Robot Hacks Applied . | . . . Relay Couplers Released . | . . . Fabnet Peak Effective % . | . . . Robots Rewired . | . . . Allies Hacked . | . . . Hacks Repelled . | . . . Allies | -11 -10 -10 -------- Run | Yrd Mat Sub Total Allies 1 | . 1 . Largest Group 1 | . 1 1 Highest-Rated Group 10 | . 10 10 Highest-Rated Ally 10 | . 10 10 Total Orders . | . . . Ally Attacks . | . . . Total Damage . | . . . Kills . | . . . Allies Corrupted . | . . . Allies Melted . | . . . Intel | -11 -10 -10 ------- Run | Yrd Mat Sub Active Infowar (turns) 49 | . 49 . ECM 49 | . 49 . Robot Analysis Total . | . . . Derelict Logs Recovered . | . . . Drone Launches . | . . . Drone Recoveries . | . . . Exploration | -11 -10 -10 ------------- Run | Yrd Mat Sub Turns Passed 1333 | 78 893 362 Spaces Moved 805 | 49 538 218 Core 16 | 16 . . Treads . | . . . Legs 323 | 33 290 . Wheels 466 | . 248 218 Hover . | . . . Flight . | . . . Fastest Speed 50 | 50 90 140 Average Speed 123 | 97 118 142 Slowest Speed 200 | 120 200 200 Overloaded Moves . | . . . Propulsion Burnouts . | . . . Robots Hopped . | . . . Potential Cave-ins . | . . . Cave-ins Triggered . | . . . Exploration Rate (%) 37 | 4 91 16 Regions Visited 2 Branch Regions 1 Pre-discovered Areas . | . . . Known Exits Taken . | . . . Unknown Exits Taken 2 | 1 1 . Scrap Searched . | . . . Spaces Dug 2 | . 2 . Terrain Destroyed 2 | . 2 . Melee 2 | . 2 . Projectile . | . . . AOE . | . . . Terrain Rammed . | . . . Walls Destroyed . | . . . Machines Disabled . | . . . Actions | -11 -10 -10 --------- Run | Yrd Mat Sub Total 1021 | 77 702 242 Wait 94 | 15 79 . Move 803 | 48 537 218 Hop . | . . . Pick Up 26 | 8 14 4 Fast Attach 5 | 4 1 . Attach 9 | 2 3 4 Detach . | . . . Swap 8 | . 8 . Drop 7 | . 7 . Fire 65 | . 49 16 Melee 4 | . 4 . Ram . | . . . Kick . | . . . Crush . | . . . Escape Stasis . | . . . Rewire . | . . . Trap . | . . . Miscellaneous . | . . . Route ------- -11/Scrapyard -10/Materials (discovered 5 exits: [*Mat x3] / [*Min] / [*Sub]) -10/Subcaves History --------- Turn | Location | Event 9 | -11/Scrapyard | Discovered new exit (range 15) 79 | -11/Scrapyard | Entered Materials 227 | -10/Materials | Discovered new exit (range 12) 314 | -10/Materials | Build established: Mutant 429 | -10/Materials | Discovered new exit (range 13) 673 | -10/Materials | Discovered new exit (range 8) 787 | -10/Materials | Discovered new exit (range 10) 890 | -10/Materials | Core integrity fell below 50% 917 | -10/Materials | Discovered new exit (range 10) 972 | -10/Materials | Entered Subcaves 972 | -10/Subcaves | Accompanied by 1 ally 973 | -10/Subcaves | Approached by a straggling Scientist 1288 | -10/Subcaves | Core integrity fell below 20% 1334 | -10/Subcaves | Destroyed by VH-FDS(R) with Subdweller Machine Gun Last Messages --------------- 01231_ Acquired 50 matter. 01235_ Subatomizers dissect the Sub. Optics. 01237_ Acquired Sub. Beam Cannon. 01242_ Acquired Sub. Power Source. 01250_ Subatomizers dissect the Sub. Optics. CY-73O(c): "I think it's somewhere northeast of here" 01282_ P6-1QD(R) destroyed. 01287_ System corrupted: Heat flow error (+276). 01289_ Wheel destroyed. 01307_ Sub. Power Source melted. 01307_ 5F-GC0(R) destroyed. 01320_ Acquired 32 matter. 01324_ Acquired Wheel. 01326_ Beam Cannon destroyed. CY-73O(c): "I think it's somewhere northeast of here" 01329_ Acquired Sub. Machine Gun. 01330_ Ion Engine destroyed. 01333_ Lgt. Assault Rifle destroyed. Map ----- +----------------------------------------------------+ | ?????????????????????????????????????????????????? | | ?????????????????????????????????????????????????? | | ?????????????????????????????????????????????????? | | ?????????????????????????????????????????????????? | | ?????????????????????????????????????????????????? | | ?????????????????????????????????????????????????? | | ?????????????????????????????????????????????????? | | ?????????????????????????????????????????????????? | | ?????????????????????????????????????????????????? | | ?????????????????????????????????????????????????? | | ?????????????????????????????????????????????????? | | ?????????????????????????????????????????????????? | | ??????????????????????????????? ???????????????? | | ???????????????????????????##? ???????????????? | | ?????????????????????????### # #???????????????? | | ?????????????????????????? # ##??????????????? | | ????????????????????????? # ?????#?????????? | | ?????????????????????????? ## #??## ?????????? | | ??????????????????????????? ### ??????????? | | ???????????????????????????# ???????????? | | ???????????????????????????# R ?????????????? | | ??????????????????####???### R#???##?????????? | | ??????????????????# ??# #?? #?????????? | | ??????????????????# #?## #?# ##?????????? | | ?????????????????## &## ## ##????????? | | ?????????????????# *% @&/& c #????????? | | ?????????????????# %& #?????????? | | ?????????????????# #### #??????????? | | ?????????????????# # #####o ;#??????????? | | ???? ?????????## ###??????????? | | ???? ????????######## # # ##????????????? | | ??? ?????????????????# #?????????????? | | ????# ??????????####### ## #?????????????? | | ?????# ?????????## ## # #?????????????? | | ??????# ????????## ##?????????????? | | ?????## #??????## #?????????????? | | ?????# ##?#### # ###?????????????? | | ?????# ### #########???????????????? | | ?????# ## #??????????????????????? | | ?????# ### #??????????????????????? | | ?????# #?# #??????????????????????? | | ?????## ##?# ##???????????????????#### | | ??????## ##?## ##???????????????????## # | | ???????## #??####???????????????????## | | ????????# #???????????????######????# # | | ???????## #???????????????# #????# # | | ???????# && ##????????#####?## ## ##???## # | | ???????# & &! #????????## ### #### ##??## # | | ???????# &%## #???????## ### ##??## #### ## | | ???????## ### ##???#### ##?# ## #???# ## | +----------------------------------------------------+ Best States ------------- Heat Dissipation 35 Energy Generation 10 Energy Capacity 250 Matter Stores 300 Matter Capacity 300 Sight Range 16 Terrain Scan Density 10 ECM Strength 1 Evasion (%) 55 Targeting Accuracy 5 Item Schematics ----------------- None Robot Schematics ------------------ None Fabricated ------------ Nothing Repaired ---------- Nothing Alien Tech Used ----------------- None Achievements -------------- None Challenges ------------ None Game ------ Seed LongswordProjectionSpecial Manual? 0 Play Time 00:24:06 Cumulative 275.1 hours Start 2025.09.02 @ 11:11:00 End 2025.09.03 @ 12:23:56 Sessions 3 Manual Loads 0 Difficulty Rogue Special Mode None Game No. 427 Rogue 427 Adventurer 0 Explorer 0 Win Type - Total 1 Types 1/0/0/0/0/0/0/0/0/0 Lore% 64 Gallery% 63 Achievement% 44 Wizard Run 0 Options --------- Layout 1 ASCII 0 Keyboard 0 Movement Mouse Keybinds 0 Fullscreen 2 Font 24/Smallcaps Map View 50x35 Zoom Use 0% Tactical HUD 1 Map Filters NONE Filters NONE Steam X RUN: 103ee344-a7ae-490b-bf48-501c75fb2f79